bitfinex-derivatives/quotes_SOLF0:USTF0_20241218
["timestamp","ask_amount","ask_price","bid_price","bid_amount"]
[1734511084515,2.3076,216.7,216.61,9.01573523]
[1734511084906,2.2,216.69,216.6,2.3086]
[1734511085110,2.3081,216.65,216.58,9.01573523]
[1734511085308,2.2,216.67,216.58,9.01573523]
[1734511085510,9.01573523,216.69,216.58,9.01573523]
[1734511085511,2.2,216.66,216.58,9.01573523]
[1734511085813,2.3082,216.64,216.58,11.32463523]
[1734511086014,2.2,216.66,216.55,11.21573523]
[1734511087209,2.9919,216.71,216.58,9.01573523]
[1734511087410,81.14425346,216.73,216.64,9.01573523]
[1734511087717,83.34425346,216.73,216.64,9.01573523]
[1734511088114,81.14425346,216.73,216.64,9.01573523]
[1734511088309,2.2,216.72,216.64,9.01573523]
[1734511088520,2.3076,216.7,216.64,11.32383523]
[1734511088718,2.2,216.72,216.64,9.01573523]
[1734511089516,2.3075,216.71,216.65,2.3081]
[1734511089712,2.2,216.72,216.64,9.01573523]
[1734511091020,2.2,216.72,216.61,9.01573523]
[1734511091519,2.3082,216.65,216.61,9.01573523]
[1734511092415,2.2,216.66,216.62,2.3084]
[1734511093518,2.2,216.66,216.61,9.01573523]
[1734511093718,2.3077,216.69,216.61,9.01573523]
[1734511093918,2.3077,216.69,216.64,9.01573523]
[1734511094521,2.3077,216.69,216.64,11.32393523]
[1734511095624,81.14425346,216.73,216.64,9.01573523]
[1734511095818,83.34425346,216.73,216.64,9.01573523]
[1734511096327,4.5074,216.73,216.68,2.3077]
[1734511099230,2.3076,216.7,216.64,11.32383523]
[1734511099428,2.3076,216.7,216.64,9.01573523]
[1734511100130,2.2,216.73,216.64,9.01573523]
[1734511101426,2.3078,216.68,216.64,9.01573523]
[1734511101827,2.2,216.73,216.64,9.01573523]
[1734511102135,2.2,216.73,216.64,11.32393523]
[1734511103132,2.3078,216.68,216.64,11.32393523]
[1734511103437,4.5078,216.68,216.64,9.01573523]
[1734511103628,4.5078,216.68,216.63,2.3083]
[1734511104227,4.5078,216.68,216.64,2.3082]
[1734511105634,2.3078,216.68,216.64,11.32393523]
[1734511110335,2.3078,216.68,216.64,9.01573523]
[1734511110536,2.3078,216.68,216.65,2.308]
[1734511110834,5.90763456,216.77,216.64,9.01573523]
[1734511110835,2.2,216.73,216.64,9.01573523]
[1734511111336,2.3075,216.71,216.67,2.3078]
[1734511111731,2.2,216.73,216.66,9.01573523]
[1734511112035,2.2,216.73,216.68,2.3077]
[1734511112036,2.3075,216.72,216.68,2.3077]
[1734511112236,2.2,216.73,216.66,9.01573523]
[1734511112435,2.2,216.75,216.66,9.01573523]
[1734511112837,4.5071,216.75,216.71,2.3074]
[1734511113042,2.3071,216.75,216.71,2.3074]
[1734511113833,83.95315063,216.77,216.71,9.01573523]
[1734511114038,0.27226,216.77,216.76,2.307]
[1734511115637,2.47226,216.77,216.62,5.62283577]
[1734511115843,2.47226,216.77,216.67,9.01573523]
[1734511116039,2.3072,216.74,216.7,5.76003384]
[1734511116436,8.23229384,216.77,216.63,11.50089486]
[1734511116638,8.23229384,216.77,216.69,5.76003384]
[1734511116639,2.3074,216.72,216.69,5.76003384]
[1734511116842,2.2,216.72,216.67,5.76003384]
[1734511117145,4.5074,216.72,216.69,5.76003384]
[1734511118644,2.2,216.72,216.63,11.50089486]
[1734511118844,2.3075,216.71,216.68,5.76003384]
[1734511119534,2.2,216.72,216.7,5.76003384]
[1734511119737,190.66192521,216.77,216.7,5.76003384]
[1734511119939,2.2,216.76,216.7,5.76003384]
[1734511120546,2.3073,216.73,216.7,5.76003384]
[1734511121141,2.3072,216.74,216.7,5.76003384]
[1734511121848,2.2,216.76,216.7,5.76003384]
[1734511122041,2.3073,216.73,216.7,5.76003384]
[1734511122941,2.3072,216.74,216.7,5.76003384]
[1734511123248,2.2,216.73,216.7,5.76003384]
[1734511124840,2.2,216.73,216.63,9.30089486]
[1734511125146,2.3074,216.72,216.69,5.76003384]
[1734511126136,2.3075,216.71,216.69,5.76003384]
[1734511127446,2.2,216.73,216.63,4.6194]
[1734511127745,2.2,216.73,216.67,5.76003384]
[1734511127950,2.2,216.73,216.69,5.76003384]
[1734511129346,2.3074,216.72,216.69,5.76003384]
[1734511131650,2.2,216.73,216.61,5.50380562]
[1734511131853,2.2,216.73,216.67,5.76003384]
[1734511132258,2.2,216.73,216.69,5.76003384]
[1734511132953,2.3074,216.72,216.69,5.76003384]
[1734511134559,4.5073,216.73,216.71,5.76003384]
[1734511136866,2.2,216.73,216.71,5.76003384]
[1734511137558,2.3072,216.74,216.71,5.76003384]
[1734511137758,2.2,216.75,216.71,5.76003384]
[1734511138966,2.3073,216.74,216.71,5.76003384]
[1734511139956,2.2,216.75,216.71,5.76003384]
[1734511140963,2.2,216.75,216.63,4.5025]
[1734511141164,2.2,216.75,216.68,5.76003384]
[1734511141858,12.46471223,216.75,216.68,5.76003384]
[1734511142052,2.3075,216.72,216.68,5.76003384]
[1734511142256,10.26471223,216.74,216.68,5.76003384]
[1734511142462,2.2,216.75,216.68,5.76003384]
[1734511142859,12.46583473,216.75,216.68,5.76003384]
[1734511143057,10.26583473,216.74,216.68,5.76003384]
[1734511143257,5.76003384,216.74,216.63,4.5025]
[1734511143458,5.76003384,216.74,216.66,5.76003384]
[1734511143667,0.69106798,216.73,216.68,5.76003384]
[1734511143864,0.69106798,216.73,216.7,5.76003384]
[1734511144356,2.3074,216.72,216.7,5.76003384]
[1734511144557,0.69106798,216.73,216.7,5.76003384]
[1734511146065,2.99836798,216.73,216.7,5.76003384]
[1734511146476,2.3075,216.71,216.68,5.76003384]
[1734511147459,2.2,216.7,216.68,5.76003384]
[1734511147662,2.2,216.7,216.66,5.76003384]
[1734511148367,2.2,216.7,216.59,3.1661]
[1734511148564,2.2,216.7,216.64,5.76003384]
[1734511148770,2.3078,216.69,216.64,5.76003384]
[1734511148965,2.2,216.7,216.64,5.76003384]
[1734511151170,2.3081,216.66,216.64,5.76003384]
[1734511152468,2.2,216.65,216.59,3.1661]
[1734511152671,2.2,216.65,216.61,5.76003384]
[1734511153178,4.5082,216.65,216.61,5.76003384]
[1734511156070,2.3083,216.64,216.61,5.76003384]
[1734511156375,2.2,216.65,216.61,5.76003384]
[1734511156968,2.2,216.65,216.59,7.34593384]
[1734511157164,5.76003384,216.6,216.5,1.4458]
[1734511157369,2.3091,216.57,216.53,5.76003384]
[1734511157566,2.2,216.59,216.53,5.76003384]
[1734511157970,2.309,216.57,216.53,5.76003384]
[1734511159674,2.3091,216.56,216.53,5.76003384]
[1734511159868,2.3091,216.56,216.51,8.06963384]
[1734511160870,5.76003384,216.58,216.51,8.06963384]
[1734511161079,2.309,216.57,216.51,8.06963384]
[1734511161278,2.2,216.59,216.55,5.76003384]
[1734511163280,4.5088,216.59,216.55,5.76003384]
[1734511163476,4.5088,216.59,216.53,8.06943384]
[1734511164580,2.3089,216.58,216.53,8.06943384]
[1734511165381,4.5089,216.59,216.54,2.3093]
[1734511165782,2.2,216.59,216.53,5.76003384]
[1734511165975,5.76003384,216.58,216.53,5.76003384]
[1734511166475,2.3092,216.56,216.53,5.76003384]
[1734511166680,5.76003384,216.58,216.5,1.4458]
[1734511166879,5.76003384,216.58,216.5,7.20583384]
[1734511167273,5.76003384,216.52,216.45,0.92400092]
[1734511167478,2.2,216.51,216.45,6.68403476]
[1734511167682,2.2,216.51,216.45,0.92400092]
[1734511167877,2.2,216.51,216.45,6.68403476]
[1734511168074,7.96003384,216.51,216.45,6.68403476]
[1734511168273,2.2,216.51,216.45,6.68403476]
[1734511168474,7.96003384,216.51,216.45,6.68403476]
[1734511169276,2.31,216.48,216.45,6.68403476]
[1734511169682,7.96003384,216.51,216.45,6.68403476]
[1734511170176,2.31,216.48,216.45,6.68403476]
[1734511170380,5.76003384,216.49,216.45,0.92400092]
[1734511170583,5.76003384,216.47,216.45,0.92400092]
[1734511170886,2.2,216.46,216.41,3.1471]
[1734511171382,2.2,216.46,216.42,5.76003384]
[1734511171591,2.2,216.46,216.44,5.76003384]
[1734511171984,2.2,216.49,216.44,8.07043384]
[1734511172686,2.2,216.49,216.44,5.76003384]
[1734511172877,4.5099,216.49,216.44,5.76003384]
[1734511173084,2.2,216.49,216.44,5.76003384]
[1734511173479,7.96003384,216.49,216.44,5.76003384]
[1734511174080,2.31,216.48,216.44,5.76003384]
[1734511174282,7.96003384,216.49,216.44,5.76003384]
[1734511174992,7.96003384,216.49,216.42,8.07053384]
[1734511175488,2.3101,216.47,216.42,8.07053384]
[1734511179294,2.3105,216.43,216.38,2.311]
[1734511179491,2.3105,216.43,216.38,8.07103384]
[1734511180896,2.3105,216.43,216.39,2.3109]
[1734511181400,2.2,216.44,216.38,5.76003384]
[1734511181591,2.3106,216.42,216.38,8.07103384]
[1734511181787,2.3106,216.42,216.38,2.311]
[1734511182095,5.76003384,216.43,216.35,5.76003384]
[1734511182294,2.311,216.39,216.35,8.07133384]
[1734511182498,4.511,216.39,216.35,8.07133384]
[1734511182686,2.2,216.39,216.35,5.76003384]
[1734511183589,2.2,216.41,216.35,5.76003384]
[1734511183793,2.2,216.46,216.39,5.76003384]
[1734511183997,2.2,216.46,216.42,5.76003384]
[1734511184198,2.3102,216.47,216.42,8.07053384]
[1734511184400,4.5102,216.47,216.42,8.07053384]
[1734511184900,2.3102,216.46,216.42,8.07053384]
[1734511187101,2.2,216.47,216.34,2.2]
[1734511187102,2.3103,216.45,216.4,5.76003384]
[1734511187297,5.76003384,216.45,216.32,8.69328411]
[1734511187602,5.76003384,216.45,216.37,5.76003384]
[1734511187995,5.76003384,216.43,216.37,5.76003384]
[1734511188201,2.2,216.42,216.37,5.76003384]
[1734511188403,2.3109,216.4,216.35,8.07123384]
[1734511188696,2.2,216.42,216.39,5.76003384]
[1734511188897,5.55040953,216.51,216.39,5.76003384]
[1734511189098,5.76003384,216.5,216.43,5.76003384]
[1734511189295,2.2,216.49,216.45,5.76003384]
[1734511189490,2.2,216.5,216.46,2.3101]
[1734511191102,7.96003384,216.51,216.36,1.485]
[1734511191305,8.07003384,216.49,216.43,2.3105]
[1734511191995,2.31,216.49,216.44,8.07043384]
[1734511192399,2.31,216.49,216.44,5.76003384]
[1734511193894,8.07003384,216.49,216.44,5.76003384]
[1734511194202,8.07003384,216.49,216.44,8.07043384]
[1734511194504,2.2,216.59,216.48,5.76003384]
[1734511194802,2.2,216.59,216.55,5.76003384]
[1734511196098,4.5088,216.59,216.55,5.76003384]
[1734511196403,2.2,216.59,216.53,5.76003384]
[1734511196703,2.2,216.58,216.53,5.76003384]
[1734511197299,4.509,216.58,216.53,5.76003384]
[1734511197493,2.2,216.58,216.52,2.3094]
[1734511197694,7.96003384,216.58,216.51,2.3096]
[1734511197896,7.96003384,216.58,216.51,8.06963384]
[1734511198397,2.3091,216.57,216.51,8.06963384]
[1734511199607,2.3091,216.57,216.51,2.3096]
[1734511199802,2.3091,216.57,216.51,8.06963384]
[1734511199997,4.5089,216.58,216.53,5.76003384]
[1734511200205,2.2,216.58,216.53,5.76003384]
[1734511200500,7.96003384,216.58,216.52,2.3094]
[1734511200707,7.96003384,216.58,216.52,8.06943384]
[1734511201404,2.309,216.57,216.52,8.06943384]
[1734511201599,2.309,216.57,216.52,5.76003384]
[1734511201804,7.96003384,216.58,216.49,4.6213]
[1734511202001,5.76003384,216.54,216.31,102.07811043]
[1734511202211,5.76003384,216.5,216.44,5.76003384]
[1734511202411,2.2,216.49,216.44,5.76003384]
[1734511202609,2.3101,216.47,216.44,5.76003384]
[1734511202814,2.3101,216.47,216.42,5.76003384]
[1734511203410,5.76003384,216.48,216.42,5.76003384]
[1734511204015,2.2,216.49,216.4,1.4617]
[1734511204213,2.3102,216.47,216.41,2.3107]
[1734511206918,2.2,216.49,216.41,2.3107]
[1734511207115,2.2,216.49,216.4,1.4617]
[1734511207812,11.2228715,216.49,216.4,1.4617]
[1734511208014,2.3102,216.46,216.39,1.4794]
[1734511208217,11.2228715,216.49,216.4,2.3108]
[1734511208821,2.3101,216.47,216.4,2.3108]
[1734511209023,11.2228715,216.49,216.4,2.3108]
[1734511209420,2.3102,216.46,216.41,2.3107]
[1734511209622,2.2,216.49,216.39,10.5022715]
[1734511210023,4.5099,216.49,216.43,2.3104]
[1734511210220,2.2,216.48,216.42,9.0228715]
[1734511210530,2.2,216.5,216.46,2.3101]
[1734511211424,2.2,216.52,216.45,9.0228715]
[1734511211729,2.2,216.52,216.48,9.0228715]
[1734511212125,2.2,216.52,216.49,2.3098]
[1734511212327,2.2,216.52,216.48,9.0228715]
[1734511212527,2.2,216.52,216.49,2.3098]
[1734511212928,2.2,216.55,216.48,9.0228715]
[1734511213423,4.5092,216.55,216.5,2.3097]
[1734511215321,2.3091,216.56,216.48,9.0228715]
[1734511215523,2.2,216.55,216.45,9.0228715]
[1734511215837,2.2,216.54,216.46,4.71029797]
[1734511216130,2.3096,216.52,216.46,2.3101]
[1734511216328,2.2,216.53,216.42,9.0228715]
[1734511216531,2.3098,216.5,216.44,2.3104]
[1734511217028,2.3098,216.5,216.45,4.71438145]
[1734511217229,2.3098,216.5,216.44,2.3104]
[1734511217733,2.2,216.53,216.45,2.3103]
[1734511217936,2.3097,216.51,216.45,2.3103]
[1734511218528,2.3097,216.51,216.42,9.0228715]
[1734511218733,2.3097,216.51,216.46,2.3102]
[1734511219937,2.2,216.5,216.48,2.3099]
[1734511220136,2.2,216.52,216.48,2.3099]
[1734511220832,2.2,216.52,216.45,9.0228715]
[1734511221137,2.2,216.55,216.46,4.71255284]
[1734511221341,2.2,216.55,216.47,4.71255284]
[1734511221529,2.2,216.55,216.45,9.0228715]
[1734511221733,2.2,216.55,216.46,4.71139163]
[1734511222038,2.2,216.55,216.45,9.0228715]
[1734511222039,2.2,216.55,216.47,4.71139163]
[1734511222336,2.2,216.55,216.51,2.3096]
[1734511222737,2.309,216.57,216.51,2.3096]
[1734511222942,4.5091,216.56,216.51,2.3096]
[1734511225242,5.54332387,216.58,216.51,2.3096]
[1734511225243,2.2,216.55,216.51,2.3096]
[1734511225542,2.2,216.55,216.48,9.0228715]
[1734511226934,2.2,216.55,216.51,2.3096]
[1734511228042,2.2,216.55,216.52,5.77007111]
[1734511229037,4.5092,216.55,216.5,8.07977111]
[1734511230940,5.77007111,216.54,216.47,2.31]
[1734511231137,5.54332387,216.58,216.49,5.77007111]
[1734511231341,7.97007111,216.57,216.49,5.77007111]
[1734511231836,7.97007111,216.57,216.51,5.77007111]
[1734511232341,5.54332387,216.58,216.51,5.77007111]
[1734511232541,2.2,216.57,216.53,5.77007111]
[1734511234337,2.3092,216.56,216.53,5.77007111]
[1734511234542,2.3092,216.56,216.51,8.07957111]
[1734511236238,2.2,216.57,216.42,5.47510006]
[1734511236440,2.2,216.57,216.51,5.77007111]
[1734511236643,11.31339498,216.58,216.51,5.77007111]
[1734511236644,2.2,216.56,216.51,5.77007111]
[1734511238244,2.3092,216.55,216.51,5.77007111]
[1734511238841,4.5091,216.56,216.53,5.77007111]
[1734511239443,2.2,216.56,216.53,5.77007111]
[1734511240543,4.5091,216.56,216.53,5.77007111]
[1734511243346,2.3093,216.54,216.51,5.77007111]
[1734511243544,2.2,216.56,216.51,5.77007111]
[1734511244550,2.3094,216.53,216.51,5.77007111]
[1734511246143,2.2,216.56,216.51,5.77007111]
[1734511246144,4.5091,216.56,216.51,2.3096]
[1734511246343,4.5091,216.56,216.53,5.77007111]
[1734511246940,4.5091,216.56,216.51,2.3096]
[1734511246941,79.83633959,216.62,216.55,5.77007111]
[1734511247247,79.83633959,216.62,216.6,5.77007111]
[1734511247248,2.2,216.62,216.6,5.77007111]
[1734511248041,2.2,216.61,216.6,5.77007111]
[1734511253953,2.3085,216.62,216.56,2.3091]
[1734511254154,2.18,216.61,216.51,4.415]
[1734511254355,2.18,216.61,216.55,5.77007111]
[1734511254948,2.3088,216.59,216.55,5.77007111]
[1734511256952,5.77007111,216.58,216.51,1.4818]
[1734511257257,5.77007111,216.58,216.51,5.77007111]
[1734511258467,2.3092,216.55,216.51,5.77007111]
[1734511258754,2.18,216.54,216.51,5.77007111]
[1734511261160,2.18,216.54,216.53,5.77007111]
[1734511261656,2.18,216.54,216.53,8.07947111]
[1734511261856,5.77007111,216.63,216.53,5.77007111]
[1734511262164,2.18,216.62,216.57,5.77007111]
[1734511262358,5.17991283,216.62,216.57,5.77007111]
[1734511262556,4.4885,216.62,216.57,5.77007111]
[1734511263563,5.77007111,216.61,216.53,2.3094]
[1734511263759,5.77007111,216.61,216.54,5.77007111]
[1734511264153,2.18,216.62,216.58,5.77007111]
[1734511264359,2.18,216.62,216.48,5.2255]
[1734511264556,2.3087,216.6,216.56,5.77007111]
[1734511265059,2.3087,216.6,216.48,5.2255]
[1734511265262,2.3087,216.6,216.56,5.77007111]
[1734511265561,2.3087,216.6,216.57,5.77007111]
[1734511265957,2.3087,216.6,216.51,2.3096]
[1734511266158,5.77007111,216.57,216.5,5.77007111]
[1734511266460,2.18,216.56,216.5,5.77007111]
[1734511267067,2.3093,216.55,216.5,5.77007111]
[1734511267863,2.3093,216.54,216.5,5.77007111]
[1734511273166,5.77007111,216.54,216.31,32.33730677]
[1734511273364,5.77007111,216.54,216.47,5.77007111]
[1734511273770,2.3099,216.49,216.47,5.77007111]
[1734511274072,4.4899,216.49,216.47,5.77007111]
[1734511275463,2.18,216.49,216.4,2.3108]
[1734511275662,2.18,216.49,216.43,5.77007111]
[1734511276363,2.3102,216.46,216.43,5.77007111]
[1734511276562,5.77007111,216.48,216.39,1.4775]
[1734511276762,5.77007111,216.48,216.41,5.77007111]
[1734511277565,5.77007111,216.48,216.37,2.3111]
[1734511277770,5.77007111,216.48,216.27,2.9782]
[1734511277771,5.77007111,216.46,216.39,5.77007111]
[1734511278274,2.18,216.49,216.39,5.77007111]
[1734511278570,2.18,216.49,216.41,5.77007111]
[1734511278571,2.3104,216.44,216.41,5.77007111]
[1734511278767,2.18,216.43,216.41,5.77007111]
[1734511279575,4.4905,216.43,216.4,5.77007111]
[1734511283088,2.3106,216.42,216.39,5.77007111]
[1734511283483,2.18,216.43,216.41,5.77007111]
[1734511283684,2.18,216.44,216.41,5.77007111]
[1734511283981,5.5164345,216.49,216.44,5.77007111]
[1734511284186,2.18,216.48,216.44,5.77007111]
[1734511284384,2.3101,216.47,216.44,5.77007111]
[1734511285482,2.18,216.48,216.44,5.77007111]
[1734511285682,2.3102,216.46,216.44,5.77007111]
[1734511286689,2.18,216.48,216.44,5.77007111]
[1734511286884,2.18,216.48,216.47,5.77007111]
[1734511289192,2.18,216.48,216.37,3.6595]
[1734511289388,2.18,216.48,216.42,2.3105]
[1734511289695,2.18,216.48,216.43,5.77007111]
[1734511290589,2.3102,216.47,216.43,5.77007111]
[1734511291390,2.18,216.48,216.45,5.77007111]
[1734511292095,2.18,216.48,216.47,5.77007111]
[1734511293483,2.18,216.5,216.47,5.77007111]
[1734511293685,2.18,216.5,216.49,5.77007111]
[1734511294096,2.18,216.5,216.48,2.3098]
[1734511294298,2.18,216.5,216.48,8.07987111]
[1734511295191,2.18,216.5,216.48,5.77007111]
[1734511297195,4.4898,216.5,216.46,8.08027111]
[1734511297895,2.3098,216.5,216.46,8.08027111]
[1734511298095,4.4898,216.5,216.46,8.08027111]
[1734511299198,4.4898,216.5,216.47,2.31]
[1734511307102,4.4898,216.5,216.46,8.08017111]
[1734511307406,2.3099,216.49,216.45,5.77007111]
[1734511307908,2.18,216.5,216.45,5.77007111]
[1734511307909,2.3101,216.47,216.45,5.77007111]
[1734511310101,7.95007111,216.5,216.37,1.4795]
[1734511310400,5.77007111,216.48,216.38,4.7283484]
[1734511310704,5.77007111,216.48,216.4,5.77007111]
[1734511311203,5.77007111,216.44,216.37,1.4795]
[1734511311407,2.16,216.43,216.36,7.27857111]
[1734511311604,5.77007111,216.4,216.29,1.486]
[1734511311798,5.77007111,216.4,216.32,5.77007111]
[1734511311799,2.3112,216.36,216.32,5.77007111]
[1734511312004,2.3112,216.36,216.33,4.73377091]
[1734511312005,4.4712,216.36,216.33,4.73377091]
[1734511312207,4.4712,216.36,216.32,5.77007111]
[1734511312411,4.4712,216.36,216.33,4.73349786]
[1734511312605,4.4712,216.36,216.32,5.77007111]
[1734511312907,4.4712,216.36,216.33,4.73371337]
[1734511313108,4.4712,216.36,216.32,5.77007111]
[1734511313407,4.4712,216.36,216.33,4.73235903]
[1734511313604,4.4712,216.36,216.32,5.77007111]
[1734511313810,4.4712,216.36,216.33,4.73246893]
[1734511314103,4.4712,216.36,216.34,5.77007111]
[1734511315812,2.16,216.39,216.34,5.77007111]
[1734511316004,2.16,216.39,216.36,5.77007111]
[1734511316303,2.16,216.39,216.29,2.9304]
[1734511316503,7.93007111,216.39,216.3,4.72989447]
[1734511316701,7.93007111,216.39,216.32,5.77007111]
[1734511316903,7.93007111,216.39,216.33,4.72989447]
[1734511317207,2.16,216.39,216.32,5.77007111]
[1734511318403,2.3111,216.37,216.32,5.77007111]
[1734511319107,2.3111,216.37,216.29,1.4444]
[1734511319108,5.77007111,216.37,216.29,1.4444]
[1734511319309,2.16,216.39,216.25,0.16762]
[1734511319310,5.77007111,216.33,216.25,0.16762]
[1734511319511,2.16,216.32,216.27,4.73003812]
[1734511319706,2.3118,216.31,216.26,7.25397111]
[1734511319901,2.3118,216.31,216.26,5.77007111]
[1734511320414,5.77007111,216.31,216.25,0.16762]
[1734511321206,5.77007111,216.29,216.25,0.16762]
[1734511321611,5.77007111,216.29,216.2,1.4922]
[1734511321612,5.77007111,216.27,216.19,2.9902]
[1734511321810,2.16,216.26,216.2,5.77007111]
[1734511322212,2.3125,216.25,216.2,5.77007111]
[1734511322513,2.16,216.26,216.18,2.313]
[1734511322807,2.16,216.26,216.2,5.77007111]
[1734511323006,5.77007111,216.25,216.12,55.81163988]
[1734511323209,2.3128,216.21,216.17,5.77007111]
[1734511323413,3.1223,216.3,216.17,5.77007111]
[1734511323414,2.16,216.2,216.17,5.77007111]
[1734511324117,2.16,216.2,216.14,9.04330978]
[1734511324712,2.16,216.2,216.16,2.3133]
[1734511328016,2.16,216.2,216.14,9.04330978]
[1734511328409,2.3132,216.18,216.14,9.04330978]
[1734511329118,2.3132,216.18,216.13,2.3136]
[1734511329809,2.3132,216.18,216.14,2.3135]
[1734511330913,2.16,216.2,216.12,55.81163988]
[1734511331116,4.4729,216.2,216.16,2.3133]
[1734511332222,2.3131,216.19,216.14,11.35680978]
[1734511332521,2.16,216.2,216.12,55.81163988]
[1734511333419,2.3132,216.18,216.14,2.3136]
[1734511335212,2.16,216.2,216.14,2.3136]
[1734511336220,2.3132,216.18,216.14,2.3136]
[1734511336912,2.3132,216.18,216.12,55.81163988]
[1734511336913,2.3131,216.19,216.15,2.3134]
[1734511337123,2.16,216.2,216.12,55.81163988]
[1734511337624,2.3132,216.18,216.13,2.3136]
[1734511339417,2.3132,216.18,216.09,3.0907]
[1734511339623,2.3132,216.18,216.14,2.3136]
[1734511341624,2.16,216.2,216.14,2.3136]
[1734511341828,2.16,216.2,216.09,8.6227071]
[1734511341829,2.3131,216.19,216.09,8.6227071]
[1734511342528,2.3131,216.19,216.14,2.3135]
[1734511344028,2.16,216.2,216.15,2.3134]
[1734511345436,2.3131,216.19,216.15,2.3134]
[1734511345838,2.3131,216.19,216.14,5.78911132]
[1734511346038,2.3131,216.19,216.14,8.10271132]
[1734511347742,2.16,216.18,216.14,5.78911132]
[1734511347936,2.16,216.2,216.16,5.78911132]
[1734511348338,2.16,216.2,216.16,8.10241132]
[1734511348840,2.16,216.2,216.16,5.78911132]
[1734511349939,2.16,216.2,216.13,2.3136]
[1734511350139,7.94911132,216.2,216.13,8.10271132]
[1734511350440,2.3131,216.19,216.13,8.10271132]
[1734511351438,2.3131,216.19,216.14,2.3136]
[1734511355947,2.16,216.19,216.17,5.78911132]
[1734511356840,2.16,216.22,216.17,5.78911132]
[1734511357037,5.78911132,216.24,216.17,5.78911132]
[1734511357241,4.4727,216.23,216.18,2.313]
[1734511359941,2.3127,216.22,216.18,2.313]
[1734511361449,5.78911132,216.2,216.13,5.78911132]
[1734511361747,5.78911132,216.2,216.14,4.72579838]
[1734511361947,2.3132,216.18,216.13,8.10271132]
[1734511362139,2.16,216.17,216.14,4.72564118]
[1734511362340,2.16,216.17,216.15,4.72564118]
[1734511362546,2.16,216.17,216.13,8.10271132]
[1734511362748,2.16,216.17,216.14,4.73116893]
[1734511362946,2.16,216.17,216.13,5.78911132]
[1734511363248,2.16,216.17,216.14,4.73150407]
[1734511363249,2.3133,216.16,216.14,4.73150407]
[1734511363450,2.3133,216.16,216.15,4.73150407]
[1734511364243,2.16,216.17,216.15,4.73150407]
[1734511364447,5.78911132,216.16,216.15,4.43719406]
[1734511364651,5.78911132,216.16,216.09,0.22698]
[1734511364852,2.3138,216.12,216.09,0.22698]
[1734511365146,2.16,216.11,216.09,0.22698]
[1734511367852,4.4739,216.11,216.09,0.22698]
[1734511373753,2.16,216.11,216.09,0.22698]
[1734511373952,2.314,216.1,216.09,0.22698]
[1734511388650,3.0073848,216.1,216.09,0.22698]
[1734511389862,0.6933848,216.1,215.94,3.0349]
[1734511390056,5.78911132,216.04,215.96,8.10461132]
[1734511390258,2.16,216.03,215.96,8.10461132]
[1734511391157,2.315,216.01,215.95,2.3155]
[1734511391362,5.78911132,216.02,215.95,5.78911132]
[1734511392056,2.3151,216.0,215.95,5.78911132]
[1734511392261,2.16,215.99,215.94,5.3506]
[1734511392453,2.16,215.99,215.94,3.0349]
[1734511392656,2.16,215.99,215.94,1.5086]
[1734511392657,2.3154,215.97,215.94,1.5086]
[1734511392857,5.78911132,215.98,215.91,1.5984]
[1734511393052,5.78911132,215.98,215.91,7.38751132]
[1734511393259,5.78911132,215.98,215.91,1.5984]
[1734511393863,2.3158,215.94,215.91,1.5984]
[1734511394062,4.4758,215.94,215.91,1.5984]
[1734511394965,2.3158,215.93,215.91,1.5984]
[1734511395662,2.3159,215.92,215.91,1.5984]
[1734511395963,2.3159,215.92,215.87,2.3163]
[1734511396165,2.16,215.94,215.88,5.78911132]
[1734511396465,7.94911132,215.94,215.86,7.27631132]
[1734511397668,5.78911132,215.92,215.86,7.27631132]
[1734511398164,2.3162,215.89,215.85,134.56511615]
[1734511398367,2.16,215.88,215.85,134.56511615]
[1734511398765,2.16,215.88,215.8,1.453]
[1734511398766,2.3168,215.85,215.84,5.78911132]